[Event "Titled Tuesday Blitz May 16 Early 2023"]
[White "Rian, Kapriaga"]
[Black "Koellner, Ruben Gideon"]
[WhiteFideId "7103263"]
[BlackFideId "12993093"]
[WhiteElo "2322"]
[BlackElo "2314"]
[Result "1/2-1/2"]
[Round "01"]
[TimeControl "180+2"]
[Date "2023.05.16"]
[WhiteClock "0:00:23"]
[BlackClock "0:01:48"]

1. d4 {[%clk 0:02:59]}  d6 {[%clk 0:03:00]} 2. Nf3 {[%clk 0:02:56]}  Nf6 {[%clk 0:03:01]} 3. Nc3 {[%clk 0:02:52]}  Nbd7 {[%clk 0:03:01]} 4. e4 {[%clk 0:02:52]}  e5 {[%clk 0:03:01]} 5. Bg5 {[%clk 0:02:48]}  Be7 {[%clk 0:03:01]} 6. Be2 {[%clk 0:02:48]}  c6 {[%clk 0:03:00]} 7. O-O {[%clk 0:02:47]}  h6 {[%clk 0:03:00]} 8. Bc1 {[%clk 0:02:39]}  O-O {[%clk 0:03:00]} 9. h3 {[%clk 0:02:39]}  Qc7 {[%clk 0:02:59]} 10. a4 {[%clk 0:02:37]}  Re8 {[%clk 0:02:59]} 11. Be3 {[%clk 0:02:35]}  Nf8 {[%clk 0:02:59]} 12. Qd2 {[%clk 0:02:33]}  Ng6 {[%clk 0:02:58]} 13. dxe5 {[%clk 0:02:27]}  dxe5 {[%clk 0:02:59]} 14. Bc4 {[%clk 0:02:27]}  Bf8 {[%clk 0:02:58]} 15. Rfd1 {[%clk 0:02:25]}  Be6 {[%clk 0:02:58]} 16. Bxe6 {[%clk 0:02:20]}  Rxe6 {[%clk 0:02:59]} 17. Qe2 {[%clk 0:02:17]}  Bb4 {[%clk 0:02:56]} 18. Qc4 {[%clk 0:02:11]}  Bxc3 {[%clk 0:02:55]} 19. bxc3 {[%clk 0:02:11]}  b6 {[%clk 0:02:53]} 20. Nd2 {[%clk 0:02:01]}  Rd8 {[%clk 0:02:52]} 21. Nb3 {[%clk 0:01:58]}  Red6 {[%clk 0:02:50]} 22. Rxd6 {[%clk 0:01:57]}  Qxd6 {[%clk 0:02:51]} 23. f3 {[%clk 0:01:57]}  Nh5 {[%clk 0:02:46]} 24. Qb4 {[%clk 0:01:48]}  Nhf4 {[%clk 0:02:41]} 25. Qxd6 {[%clk 0:01:46]}  Rxd6 {[%clk 0:02:42]} 26. Kf2 {[%clk 0:01:43]}  Kf8 {[%clk 0:02:34]} 27. a5 {[%clk 0:01:43]}  c5 {[%clk 0:02:34]} 28. axb6 {[%clk 0:01:41]}  axb6 {[%clk 0:02:34]} 29. Nxc5 {[%clk 0:01:40]}  Rc6 {[%clk 0:02:22]} 30. Nd7+ {[%clk 0:01:30]}  Ke7 {[%clk 0:02:22]} 31. Nxb6 {[%clk 0:01:29]}  Rxc3 {[%clk 0:02:22]} 32. Ra2 {[%clk 0:01:28]}  Rc6 {[%clk 0:02:19]} 33. c4 {[%clk 0:01:20]}  Nd3+ {[%clk 0:02:14]} 34. Kg3 {[%clk 0:01:08]}  Ngf4 {[%clk 0:02:12]} 35. Nd5+ {[%clk 0:01:02]}  Ke6 {[%clk 0:02:09]} 36. Bxf4 {[%clk 0:00:57]}  exf4+ {[%clk 0:02:06]} 37. Nxf4+ {[%clk 0:00:53]}  Nxf4 {[%clk 0:02:07]} 38. Kxf4 {[%clk 0:00:53]}  Rxc4 {[%clk 0:02:08]} 39. Ra6+ {[%clk 0:00:52]}  Ke7 {[%clk 0:02:08]} 40. h4 {[%clk 0:00:49]}  Rc2 {[%clk 0:02:05]} 41. g4 {[%clk 0:00:48]}  Rc7 {[%clk 0:02:04]} 42. h5 {[%clk 0:00:47]}  Rb7 {[%clk 0:02:04]} 43. g5 {[%clk 0:00:43]}  hxg5+ {[%clk 0:02:02]} 44. Kxg5 {[%clk 0:00:43]}  Rb5+ {[%clk 0:02:03]} 45. Kg4 {[%clk 0:00:43]}  Rb1 {[%clk 0:02:04]} 46. f4 {[%clk 0:00:40]}  Rg1+ {[%clk 0:01:58]} 47. Kf5 {[%clk 0:00:39]}  Rh1 {[%clk 0:01:59]} 48. Ra7+ {[%clk 0:00:38]}  Kf8 {[%clk 0:01:59]} 49. Ra8+ {[%clk 0:00:33]}  Ke7 {[%clk 0:01:59]} 50. Rh8 {[%clk 0:00:32]}  g6+ {[%clk 0:01:49]} 51. Kg5 {[%clk 0:00:32]}  Rg1+ {[%clk 0:01:48]} 52. Kh4 {[%clk 0:00:25]}  Rh1+ {[%clk 0:01:48]} 53. Kg5 {[%clk 0:00:24]}  Rg1+ {[%clk 0:01:48]} 54. Kh4 {[%clk 0:00:24]}  Rh1+ {[%clk 0:01:48]} 55. Kg5 {[%clk 0:00:23]} 1/2-1/2


[Site "https://www.chess.com"]

[Event "Titled Tuesday Blitz May 16 Early 2023"]
[White "Ehlvest, Jaan"]
[Black "Onslow, Alfie"]
[WhiteFideId "4500016"]
[BlackFideId "436976"]
[WhiteElo "2442"]
[BlackElo "2114"]
[Result "1-0"]
[Round "01"]
[TimeControl "180+2"]
[Date "2023.05.16"]
[WhiteClock "0:00:13"]
[BlackClock "0:00:00"]

1. e4 {[%clk 0:02:58]}  g6 {[%clk 0:02:58]} 2. d4 {[%clk 0:02:57]}  Bg7 {[%clk 0:02:58]} 3. Nc3 {[%clk 0:02:57]}  c6 {[%clk 0:02:57]} 4. f4 {[%clk 0:02:54]}  d5 {[%clk 0:02:57]} 5. e5 {[%clk 0:02:54]}  h5 {[%clk 0:02:57]} 6. Nf3 {[%clk 0:02:54]}  Nh6 {[%clk 0:02:55]} 7. Be3 {[%clk 0:02:53]}  Bg4 {[%clk 0:02:52]} 8. h3 {[%clk 0:02:53]}  Bxf3 {[%clk 0:02:52]} 9. Qxf3 {[%clk 0:02:54]}  Nf5 {[%clk 0:02:52]} 10. Bf2 {[%clk 0:02:54]}  h4 {[%clk 0:02:50]} 11. Bd3 {[%clk 0:02:53]}  e6 {[%clk 0:02:50]} 12. O-O {[%clk 0:02:52]}  Nd7 {[%clk 0:02:49]} 13. Ne2 {[%clk 0:02:52]}  Bf8 {[%clk 0:02:46]} 14. b3 {[%clk 0:02:50]}  Be7 {[%clk 0:02:34]} 15. c4 {[%clk 0:02:50]}  Kf8 {[%clk 0:02:33]} 16. a3 {[%clk 0:02:50]}  Kg7 {[%clk 0:02:33]} 17. Rfb1 {[%clk 0:02:48]}  a6 {[%clk 0:02:19]} 18. c5 {[%clk 0:02:46]}  a5 {[%clk 0:01:38]} 19. b4 {[%clk 0:02:46]}  axb4 {[%clk 0:01:36]} 20. axb4 {[%clk 0:02:47]}  b5 {[%clk 0:01:35]} 21. Nc3 {[%clk 0:02:28]}  Qc7 {[%clk 0:01:24]} 22. Qe2 {[%clk 0:02:27]}  Qb7 {[%clk 0:01:22]} 23. Nxb5 {[%clk 0:02:08]}  cxb5 {[%clk 0:01:18]} 24. Bxb5 {[%clk 0:02:08]}  Rxa1 {[%clk 0:01:15]} 25. Rxa1 {[%clk 0:02:07]}  Rb8 {[%clk 0:01:12]} 26. Ba4 {[%clk 0:01:35]}  Qxb4 {[%clk 0:00:59]} 27. Bxd7 {[%clk 0:01:21]}  Nxd4 {[%clk 0:00:58]} 28. Qg4 {[%clk 0:01:17]}  Qxc5 {[%clk 0:00:28]} 29. Kh2 {[%clk 0:01:13]}  Qc7 {[%clk 0:00:27]} 30. Bxd4 {[%clk 0:01:00]}  Qxd7 {[%clk 0:00:25]} 31. f5 {[%clk 0:01:00]}  exf5 {[%clk 0:00:20]} 32. e6+ {[%clk 0:00:48]}  Kf8 {[%clk 0:00:15]} 33. exd7 {[%clk 0:00:38]}  fxg4 {[%clk 0:00:15]} 34. hxg4 {[%clk 0:00:38]}  Bd6+ {[%clk 0:00:13]} 35. Kh3 {[%clk 0:00:37]}  Ke7 {[%clk 0:00:12]} 36. Kxh4 {[%clk 0:00:30]}  f6 {[%clk 0:00:10]} 37. g5 {[%clk 0:00:25]}  f5 {[%clk 0:00:06]} 38. g4 {[%clk 0:00:20]}  fxg4 {[%clk 0:00:04]} 39. Ra7 {[%clk 0:00:17]}  g3 {[%clk 0:00:01]} 40. Bf6+ {[%clk 0:00:16]}  Ke6 {[%clk 0:00:00]} 41. Kh3 {[%clk 0:00:13]} 1-0


[Site "https://www.chess.com"]

[Event "Titled Tuesday Blitz May 16 Early 2023"]
[White "Kaminski, Victor"]
[Black "Fromm, Marius"]
[WhiteFideId "1131630"]
[BlackFideId "12993190"]
[WhiteElo "2181"]
[BlackElo "2325"]
[Result "0-1"]
[Round "01"]
[TimeControl "180+2"]
[Date "2023.05.16"]
[WhiteClock "0:00:00"]
[BlackClock "0:00:17"]

1. d4 {[%clk 0:02:57]}  d5 {[%clk 0:02:59]} 2. c4 {[%clk 0:02:57]}  Nc6 {[%clk 0:03:00]} 3. Nf3 {[%clk 0:02:55]}  Bg4 {[%clk 0:02:59]} 4. e3 {[%clk 0:02:52]}  e6 {[%clk 0:02:57]} 5. Nc3 {[%clk 0:02:45]}  Nf6 {[%clk 0:02:56]} 6. Qa4 {[%clk 0:02:44]}  Bxf3 {[%clk 0:02:54]} 7. gxf3 {[%clk 0:02:41]}  Be7 {[%clk 0:02:28]} 8. f4 {[%clk 0:02:37]}  O-O {[%clk 0:02:27]} 9. Rg1 {[%clk 0:02:31]}  a6 {[%clk 0:02:17]} 10. cxd5 {[%clk 0:02:31]}  exd5 {[%clk 0:02:17]} 11. Bd3 {[%clk 0:02:28]}  Nb4 {[%clk 0:02:07]} 12. Bb1 {[%clk 0:02:22]}  c5 {[%clk 0:02:08]} 13. Qd1 {[%clk 0:02:13]}  Rc8 {[%clk 0:02:02]} 14. Bf5 {[%clk 0:02:07]}  Rc7 {[%clk 0:01:59]} 15. Ne2 {[%clk 0:02:00]}  Ne4 {[%clk 0:01:47]} 16. a3 {[%clk 0:01:28]}  Nc6 {[%clk 0:01:44]} 17. Bxe4 {[%clk 0:01:12]}  dxe4 {[%clk 0:01:45]} 18. dxc5 {[%clk 0:01:13]}  Qxd1+ {[%clk 0:01:42]} 19. Kxd1 {[%clk 0:01:14]}  Bxc5 {[%clk 0:01:42]} 20. Nc3 {[%clk 0:01:13]}  f5 {[%clk 0:01:33]} 21. Bd2 {[%clk 0:01:04]}  Rd8 {[%clk 0:01:28]} 22. Ke2 {[%clk 0:01:04]}  Rcd7 {[%clk 0:01:26]} 23. Rad1 {[%clk 0:01:01]}  Na5 {[%clk 0:01:24]} 24. Na4 {[%clk 0:00:45]}  Nb3 {[%clk 0:01:20]} 25. Bc3 {[%clk 0:00:43]}  Bf8 {[%clk 0:01:12]} 26. Rxd7 {[%clk 0:00:34]}  Rxd7 {[%clk 0:01:13]} 27. Nb6 {[%clk 0:00:35]}  Rd3 {[%clk 0:01:09]} 28. Nc4 {[%clk 0:00:28]}  g6 {[%clk 0:01:04]} 29. h4 {[%clk 0:00:27]}  Kf7 {[%clk 0:01:04]} 30. Ne5+ {[%clk 0:00:26]}  Ke6 {[%clk 0:01:01]} 31. Nxd3 {[%clk 0:00:27]}  exd3+ {[%clk 0:00:57]} 32. Kxd3 {[%clk 0:00:28]}  Nc5+ {[%clk 0:00:57]} 33. Ke2 {[%clk 0:00:28]}  Ne4 {[%clk 0:00:58]} 34. Bd4 {[%clk 0:00:25]}  b5 {[%clk 0:00:57]} 35. h5 {[%clk 0:00:24]}  gxh5 {[%clk 0:00:55]} 36. Rh1 {[%clk 0:00:24]}  h6 {[%clk 0:00:43]} 37. Rxh5 {[%clk 0:00:22]}  a5 {[%clk 0:00:43]} 38. Rh1 {[%clk 0:00:19]}  Nd6 {[%clk 0:00:41]} 39. b3 {[%clk 0:00:15]}  Ne4 {[%clk 0:00:40]} 40. a4 {[%clk 0:00:13]}  b4 {[%clk 0:00:36]} 41. Rc1 {[%clk 0:00:12]}  Kd5 {[%clk 0:00:36]} 42. Rc8 {[%clk 0:00:12]}  Bc5 {[%clk 0:00:35]} 43. Rd8+ {[%clk 0:00:04]}  Ke6 {[%clk 0:00:35]} 44. Rc8 {[%clk 0:00:02]}  Bxd4 {[%clk 0:00:33]} 45. exd4 {[%clk 0:00:03]}  Kd5 {[%clk 0:00:34]} 46. Kd3 {[%clk 0:00:03]}  Nxf2+ {[%clk 0:00:34]} 47. Ke3 {[%clk 0:00:04]}  Nd1+ {[%clk 0:00:33]} 48. Kd2 {[%clk 0:00:04]}  Nc3 {[%clk 0:00:32]} 49. Rc5+ {[%clk 0:00:05]}  Kxd4 {[%clk 0:00:32]} 50. Rxf5 {[%clk 0:00:05]}  Nd5 {[%clk 0:00:30]} 51. Rh5 {[%clk 0:00:04]}  Nxf4 {[%clk 0:00:27]} 52. Rxh6 {[%clk 0:00:04]}  Nd3 {[%clk 0:00:11]} 53. Ra6 {[%clk 0:00:04]}  Nc5 {[%clk 0:00:11]} 54. Rxa5 {[%clk 0:00:04]}  Nxb3+ {[%clk 0:00:12]} 55. Kc2 {[%clk 0:00:04]}  Nxa5 {[%clk 0:00:12]} 56. Kb2 {[%clk 0:00:04]}  Kc4 {[%clk 0:00:13]} 57. Kc2 {[%clk 0:00:04]}  b3+ {[%clk 0:00:14]} 58. Kb2 {[%clk 0:00:05]}  Kb4 {[%clk 0:00:15]} 59. Kb1 {[%clk 0:00:05]}  Kxa4 {[%clk 0:00:16]} 60. Kb2 {[%clk 0:00:05]}  Nc4+ {[%clk 0:00:15]} 61. Kc3 {[%clk 0:00:03]}  Ka3 {[%clk 0:00:16]} 62. Kxc4 {[%clk 0:00:00]}  b2 {[%clk 0:00:17]} 0-1


[Site "https://www.chess.com"]

[Event "Titled Tuesday Blitz May 16 Early 2023"]
[White "Herrera Ortiz, Miguel"]
[Black "De Souza, Cristiano Gomes"]
[WhiteFideId "5100550"]
[BlackFideId "2151758"]
[WhiteElo "2617"]
[BlackElo "2068"]
[Result "1-0"]
[Round "01"]
[TimeControl "180+2"]
[Date "2023.05.16"]
[WhiteClock "0:00:04"]
[BlackClock "0:00:04"]

1. e4 {[%clk 0:02:50]}  c5 {[%clk 0:02:58]} 2. Nf3 {[%clk 0:02:50]}  d6 {[%clk 0:02:59]} 3. d4 {[%clk 0:02:50]}  cxd4 {[%clk 0:02:59]} 4. Nxd4 {[%clk 0:02:51]}  Nf6 {[%clk 0:02:59]} 5. Nc3 {[%clk 0:02:51]}  g6 {[%clk 0:03:00]} 6. Be3 {[%clk 0:02:51]}  Bg7 {[%clk 0:03:00]} 7. f3 {[%clk 0:02:51]}  O-O {[%clk 0:03:00]} 8. Qd2 {[%clk 0:02:51]}  Nc6 {[%clk 0:03:01]} 9. Bc4 {[%clk 0:02:51]}  Bd7 {[%clk 0:03:00]} 10. O-O-O {[%clk 0:02:51]}  Rc8 {[%clk 0:03:00]} 11. Bb3 {[%clk 0:02:51]}  Ne5 {[%clk 0:03:00]} 12. Kb1 {[%clk 0:02:41]}  Nc4 {[%clk 0:02:59]} 13. Bxc4 {[%clk 0:02:41]}  Rxc4 {[%clk 0:03:00]} 14. g4 {[%clk 0:02:41]}  Re8 {[%clk 0:02:54]} 15. h4 {[%clk 0:02:38]}  Qa5 {[%clk 0:02:53]} 16. Nb3 {[%clk 0:02:34]}  Qc7 {[%clk 0:02:49]} 17. h5 {[%clk 0:02:33]}  Be6 {[%clk 0:02:29]} 18. hxg6 {[%clk 0:02:21]}  fxg6 {[%clk 0:02:28]} 19. Nb5 {[%clk 0:02:19]}  Qd7 {[%clk 0:02:23]} 20. N5d4 {[%clk 0:02:18]}  Bf7 {[%clk 0:02:20]} 21. Bh6 {[%clk 0:02:17]}  Bh8 {[%clk 0:02:15]} 22. Ne2 {[%clk 0:02:17]}  Rec8 {[%clk 0:02:12]} 23. c3 {[%clk 0:02:16]}  Ra4 {[%clk 0:01:58]} 24. Nec1 {[%clk 0:02:12]}  Rc6 {[%clk 0:01:43]} 25. Be3 {[%clk 0:02:09]}  Rca6 {[%clk 0:01:42]} 26. Bd4 {[%clk 0:02:08]}  Bg7 {[%clk 0:01:18]} 27. g5 {[%clk 0:02:06]}  Nh5 {[%clk 0:01:17]} 28. Bxg7 {[%clk 0:02:06]}  Kxg7 {[%clk 0:01:17]} 29. a3 {[%clk 0:01:44]}  Qb5 {[%clk 0:01:08]} 30. Qc2 {[%clk 0:00:24]}  Nf4 {[%clk 0:00:46]} 31. Rdg1 {[%clk 0:00:18]}  Ne6 {[%clk 0:00:42]} 32. Qd1 {[%clk 0:00:16]}  Nc5 {[%clk 0:00:40]} 33. Nd4 {[%clk 0:00:16]}  Qb6 {[%clk 0:00:35]} 34. Kc2 {[%clk 0:00:14]}  e5 {[%clk 0:00:24]} 35. Nde2 {[%clk 0:00:13]}  Nb3 {[%clk 0:00:23]} 36. Qe1 {[%clk 0:00:10]}  Nxc1 {[%clk 0:00:23]} 37. Nxc1 {[%clk 0:00:09]}  Bg8 {[%clk 0:00:18]} 38. Qh4 {[%clk 0:00:09]}  Kf7 {[%clk 0:00:17]} 39. Qe1 {[%clk 0:00:07]}  Qc6 {[%clk 0:00:16]} 40. Qd2 {[%clk 0:00:07]}  Rb6 {[%clk 0:00:15]} 41. Rf1 {[%clk 0:00:07]}  Qb5 {[%clk 0:00:14]} 42. b4 {[%clk 0:00:05]}  Rxa3 {[%clk 0:00:14]} 43. f4 {[%clk 0:00:06]}  Qa4+ {[%clk 0:00:14]} 44. Kd3 {[%clk 0:00:05]}  Kf8 {[%clk 0:00:13]} 45. fxe5+ {[%clk 0:00:04]}  Ke8 {[%clk 0:00:10]} 46. Qf2 {[%clk 0:00:05]}  Qb5+ {[%clk 0:00:10]} 47. Ke3 {[%clk 0:00:05]}  Kd7 {[%clk 0:00:08]} 48. Qf8 {[%clk 0:00:04]}  Be6 {[%clk 0:00:08]} 49. Rxh7+ {[%clk 0:00:03]}  Kc6 {[%clk 0:00:07]} 50. Qe8+ {[%clk 0:00:04]}  Bd7 {[%clk 0:00:04]} 51. Qxd7# {[%clk 0:00:04]} 1-0


[Site "https://www.chess.com"]

[Event "Titled Tuesday Blitz May 16 Early 2023"]
[White "Mikhaylova, Irina"]
[Black "Lenaerts, Lennert"]
[WhiteFideId "4109040"]
[BlackFideId "211435"]
[WhiteElo "1975"]
[BlackElo "2334"]
[Result "0-1"]
[Round "01"]
[TimeControl "180+2"]
[Date "2023.05.16"]
[WhiteClock "0:01:00"]
[BlackClock "0:02:00"]

1. Nf3 {[%clk 0:01:43]}  d5 {[%clk 0:02:58]} 2. c4 {[%clk 0:01:43]}  c6 {[%clk 0:02:58]} 3. cxd5 {[%clk 0:01:43]}  cxd5 {[%clk 0:02:59]} 4. d4 {[%clk 0:01:44]}  Nf6 {[%clk 0:03:00]} 5. Nc3 {[%clk 0:01:45]}  Nc6 {[%clk 0:03:01]} 6. Bf4 {[%clk 0:01:45]}  Nh5 {[%clk 0:03:01]} 7. Bg5 {[%clk 0:01:45]}  h6 {[%clk 0:03:02]} 8. Bh4 {[%clk 0:01:45]}  g5 {[%clk 0:03:01]} 9. Bg3 {[%clk 0:01:46]}  Nxg3 {[%clk 0:02:54]} 10. hxg3 {[%clk 0:01:46]}  g4 {[%clk 0:02:54]} 11. Ng1 {[%clk 0:01:28]}  e5 {[%clk 0:02:44]} 12. e3 {[%clk 0:01:26]}  exd4 {[%clk 0:02:39]} 13. exd4 {[%clk 0:01:27]}  Bg7 {[%clk 0:02:40]} 14. Bb5 {[%clk 0:01:26]}  O-O {[%clk 0:02:37]} 15. Nge2 {[%clk 0:01:24]}  Be6 {[%clk 0:02:35]} 16. O-O {[%clk 0:01:23]}  Qb6 {[%clk 0:02:35]} 17. Bxc6 {[%clk 0:01:23]}  bxc6 {[%clk 0:02:36]} 18. Qd2 {[%clk 0:01:23]}  Rab8 {[%clk 0:02:35]} 19. b3 {[%clk 0:01:22]}  Qa5 {[%clk 0:02:34]} 20. Rfd1 {[%clk 0:01:21]}  Rfc8 {[%clk 0:02:31]} 21. Na4 {[%clk 0:01:19]}  Qxd2 {[%clk 0:02:28]} 22. Rxd2 {[%clk 0:01:20]}  c5 {[%clk 0:02:29]} 23. Rc1 {[%clk 0:01:13]}  cxd4 {[%clk 0:02:13]} 24. Rxc8+ {[%clk 0:01:12]}  Rxc8 {[%clk 0:02:14]} 25. Nxd4 {[%clk 0:01:12]}  Rc1+ {[%clk 0:02:14]} 26. Kh2 {[%clk 0:01:13]}  Bxd4 {[%clk 0:02:15]} 27. Rxd4 {[%clk 0:01:13]}  Rc2 {[%clk 0:02:16]} 28. b4 {[%clk 0:01:12]}  Rxa2 {[%clk 0:02:14]} 29. Nc5 {[%clk 0:01:12]}  Rxf2 {[%clk 0:02:14]} 30. Nxe6 {[%clk 0:01:12]}  fxe6 {[%clk 0:02:15]} 31. Rxg4+ {[%clk 0:01:13]}  Kf7 {[%clk 0:02:16]} 32. Rh4 {[%clk 0:01:13]}  Kg6 {[%clk 0:02:13]} 33. b5 {[%clk 0:01:13]}  Rb2 {[%clk 0:02:11]} 34. Ra4 {[%clk 0:01:11]}  Rxb5 {[%clk 0:02:10]} 35. Rxa7 {[%clk 0:01:11]}  d4 {[%clk 0:02:07]} 36. Re7 {[%clk 0:01:11]}  Kf6 {[%clk 0:02:00]} 37. Rh7 {[%clk 0:01:11]}  h5 {[%clk 0:01:59]} 38. Rd7 {[%clk 0:01:09]}  Rd5 {[%clk 0:01:58]} 39. Rxd5 {[%clk 0:01:05]}  exd5 {[%clk 0:01:59]} 40. Kg1 {[%clk 0:01:05]}  Kf5 {[%clk 0:01:59]} 41. Kf2 {[%clk 0:01:00]}  Kg4 {[%clk 0:02:00]} 0-1


[Site "https://www.chess.com"]

[Event "Titled Tuesday Blitz May 16 Early 2023"]
[White "Maung, Maung Kyaw Zaw Hein"]
[Black "Sadykov, Ramil"]
[WhiteFideId "13001698"]
[BlackFideId "24113590"]
[WhiteElo "2019"]
[BlackElo "2245"]
[Result "1-0"]
[Round "01"]
[TimeControl "180+2"]
[Date "2023.05.16"]
[WhiteClock "0:00:48"]
[BlackClock "0:00:00"]

1. Nf3 {[%clk 0:03:00]}  c5 {[%clk 0:02:59]} 2. c4 {[%clk 0:03:01]}  Nc6 {[%clk 0:02:59]} 3. d4 {[%clk 0:03:01]}  cxd4 {[%clk 0:02:55]} 4. Nxd4 {[%clk 0:03:02]}  g6 {[%clk 0:02:46]} 5. e4 {[%clk 0:03:01]}  Bg7 {[%clk 0:02:46]} 6. Be3 {[%clk 0:03:01]}  Nf6 {[%clk 0:02:30]} 7. Nc3 {[%clk 0:03:00]}  Ng4 {[%clk 0:02:25]} 8. Qxg4 {[%clk 0:02:59]}  Nxd4 {[%clk 0:02:25]} 9. Qd1 {[%clk 0:03:00]}  Nc6 {[%clk 0:02:25]} 10. Qd2 {[%clk 0:02:59]}  d6 {[%clk 0:02:23]} 11. Be2 {[%clk 0:02:58]}  Be6 {[%clk 0:02:16]} 12. O-O {[%clk 0:02:58]}  O-O {[%clk 0:02:15]} 13. Nd5 {[%clk 0:02:55]}  Qd7 {[%clk 0:02:03]} 14. Rfd1 {[%clk 0:02:48]}  Rfc8 {[%clk 0:01:57]} 15. Rac1 {[%clk 0:02:47]}  Qd8 {[%clk 0:01:52]} 16. Bg5 {[%clk 0:02:42]}  a5 {[%clk 0:01:28]} 17. Be3 {[%clk 0:02:35]}  Bxd5 {[%clk 0:01:27]} 18. cxd5 {[%clk 0:02:34]}  Nb4 {[%clk 0:01:12]} 19. a3 {[%clk 0:02:07]}  Na6 {[%clk 0:01:10]} 20. Rxc8 {[%clk 0:02:00]}  Rxc8 {[%clk 0:01:09]} 21. Rc1 {[%clk 0:01:54]}  Nc5 {[%clk 0:01:01]} 22. f3 {[%clk 0:01:51]}  Nb3 {[%clk 0:00:48]} 23. Rxc8 {[%clk 0:01:49]}  Qxc8 {[%clk 0:00:49]} 24. Qd3 {[%clk 0:01:26]}  a4 {[%clk 0:00:48]} 25. Bd1 {[%clk 0:01:26]}  Nc1 {[%clk 0:00:28]} 26. Qb5 {[%clk 0:01:05]}  h5 {[%clk 0:00:09]} 27. Bxa4 {[%clk 0:01:00]}  h4 {[%clk 0:00:08]} 28. Qe8+ {[%clk 0:00:59]}  Qxe8 {[%clk 0:00:08]} 29. Bxe8 {[%clk 0:01:00]}  Bxb2 {[%clk 0:00:09]} 30. a4 {[%clk 0:00:59]}  Na2 {[%clk 0:00:05]} 31. Bd7 {[%clk 0:00:51]}  Kf8 {[%clk 0:00:00]} 32. Bc8 {[%clk 0:00:48]} 1-0


[Site "https://www.chess.com"]

[Event "Titled Tuesday Blitz May 16 Early 2023"]
[White "Popilski, Gil"]
[Black "Blokhin, Sofia"]
[WhiteFideId "2809060"]
[BlackFideId "4508190"]
[WhiteElo "2537"]
[BlackElo "1994"]
[Result "1-0"]
[Round "01"]
[TimeControl "180+2"]
[Date "2023.05.16"]
[WhiteClock "0:01:43"]
[BlackClock "0:00:46"]

1. d4 {[%clk 0:02:47]}  f5 {[%clk 0:02:58]} 2. Nf3 {[%clk 0:02:44]}  g6 {[%clk 0:02:57]} 3. g3 {[%clk 0:02:43]}  Bg7 {[%clk 0:02:56]} 4. Bg2 {[%clk 0:02:44]}  Nf6 {[%clk 0:02:57]} 5. O-O {[%clk 0:02:44]}  O-O {[%clk 0:02:56]} 6. c4 {[%clk 0:02:43]}  d6 {[%clk 0:02:56]} 7. Nc3 {[%clk 0:02:43]}  Nc6 {[%clk 0:02:54]} 8. d5 {[%clk 0:02:40]}  Na5 {[%clk 0:02:45]} 9. b3 {[%clk 0:02:40]}  b6 {[%clk 0:02:43]} 10. Bb2 {[%clk 0:02:39]}  Nb7 {[%clk 0:02:35]} 11. Nd4 {[%clk 0:02:32]}  Bd7 {[%clk 0:02:27]} 12. b4 {[%clk 0:02:31]}  a5 {[%clk 0:02:24]} 13. a3 {[%clk 0:02:31]}  Qc8 {[%clk 0:02:13]} 14. Qb3 {[%clk 0:02:25]}  Kh8 {[%clk 0:02:11]} 15. Rae1 {[%clk 0:02:18]}  Nd8 {[%clk 0:01:59]} 16. e4 {[%clk 0:02:14]}  fxe4 {[%clk 0:01:54]} 17. Nxe4 {[%clk 0:02:13]}  Bh3 {[%clk 0:01:47]} 18. Ng5 {[%clk 0:02:12]}  Bxg2 {[%clk 0:01:42]} 19. Kxg2 {[%clk 0:02:12]}  Ng4 {[%clk 0:01:21]} 20. Rxe7 {[%clk 0:02:09]}  Ne5 {[%clk 0:01:14]} 21. f4 {[%clk 0:02:03]}  Ng4 {[%clk 0:01:00]} 22. Rxg7 {[%clk 0:01:45]}  Kxg7 {[%clk 0:00:51]} 23. Nf5+ {[%clk 0:01:44]}  Kg8 {[%clk 0:00:46]} 24. Ne7# {[%clk 0:01:43]} 1-0


[Site "https://www.chess.com"]

[Event "Titled Tuesday Blitz May 16 Early 2023"]
[White "Smith, Shreyas"]
[Black "Sebag, Marie"]
[WhiteFideId "7400713"]
[BlackFideId "617822"]
[WhiteElo "2151"]
[BlackElo "2431"]
[Result "0-1"]
[Round "01"]
[TimeControl "180+2"]
[Date "2023.05.16"]
[WhiteClock "0:00:00"]
[BlackClock "0:00:27"]

1. e4 {[%clk 0:03:00]}  e5 {[%clk 0:02:58]} 2. Nf3 {[%clk 0:03:00]}  Nc6 {[%clk 0:02:57]} 3. Bb5 {[%clk 0:03:01]}  a6 {[%clk 0:02:55]} 4. Ba4 {[%clk 0:03:01]}  Bc5 {[%clk 0:02:54]} 5. d3 {[%clk 0:02:59]}  b5 {[%clk 0:02:52]} 6. Bb3 {[%clk 0:02:58]}  Nf6 {[%clk 0:02:53]} 7. Bg5 {[%clk 0:02:57]}  d6 {[%clk 0:02:52]} 8. c3 {[%clk 0:02:56]}  h6 {[%clk 0:02:52]} 9. Bh4 {[%clk 0:02:56]}  Bb6 {[%clk 0:02:51]} 10. a4 {[%clk 0:02:52]}  Rb8 {[%clk 0:02:50]} 11. Nbd2 {[%clk 0:02:50]}  Bd7 {[%clk 0:02:36]} 12. O-O {[%clk 0:02:45]}  g5 {[%clk 0:02:35]} 13. Bg3 {[%clk 0:02:45]}  Rg8 {[%clk 0:02:22]} 14. Re1 {[%clk 0:02:36]}  Qe7 {[%clk 0:01:43]} 15. axb5 {[%clk 0:02:26]}  axb5 {[%clk 0:01:42]} 16. Bd5 {[%clk 0:02:23]}  Nd8 {[%clk 0:01:29]} 17. d4 {[%clk 0:02:03]}  Nh5 {[%clk 0:01:26]} 18. Nxe5 {[%clk 0:01:50]}  Nxg3 {[%clk 0:01:17]} 19. Nxd7 {[%clk 0:01:50]}  Qxd7 {[%clk 0:01:16]} 20. fxg3 {[%clk 0:01:41]}  c6 {[%clk 0:01:16]} 21. Bb3 {[%clk 0:01:39]}  Ne6 {[%clk 0:01:14]} 22. Rf1 {[%clk 0:01:39]}  Qe7 {[%clk 0:01:09]} 23. Qh5 {[%clk 0:01:33]}  c5 {[%clk 0:01:05]} 24. Qxh6 {[%clk 0:00:50]}  cxd4 {[%clk 0:01:03]} 25. Kh1 {[%clk 0:00:50]}  Kd7 {[%clk 0:00:49]} 26. Qh7 {[%clk 0:00:45]}  Rbf8 {[%clk 0:00:35]} 27. Rf5 {[%clk 0:00:36]}  dxc3 {[%clk 0:00:34]} 28. bxc3 {[%clk 0:00:35]}  Rh8 {[%clk 0:00:33]} 29. Bxe6+ {[%clk 0:00:08]}  Kxe6 {[%clk 0:00:29]} 30. Qg7 {[%clk 0:00:00]}  Rfg8 {[%clk 0:00:27]} 0-1


[Site "https://www.chess.com"]